lending/lending_fUSD_20251116
["ID","MTS","AMOUNT","RATE_DAILY","PERIOD"]
[394142608,1763319052714,-216.330313,0.00035,30]
[394142609,1763319052724,-177.820604,0.00035,31]
[394142610,1763319052736,-216.330313,0.00035,30]
[394142611,1763319052746,-177.820604,0.00035,31]
[394142612,1763319052755,-177.820604,0.00035,31]
[394142613,1763319052766,-177.820604,0.00035,31]
[394142614,1763319052775,-151.0,0.00035,31]
[394142615,1763319052785,-151.0,0.00035,31]
[394142616,1763319052794,-217.445781,0.00035,31]
[394142617,1763319052804,-767.580442,0.00035,31]
[394142618,1763319052814,-767.580442,0.00035,31]
[394142619,1763319052824,-767.580442,0.00035,31]
[394142620,1763319052833,-767.580442,0.00035,31]
[394142621,1763319052843,-2119.67788,0.00035,31]
[394142622,1763319052852,-2119.67788,0.00035,31]
[394142623,1763319052862,-2119.67788,0.00035,31]
[394142624,1763319052872,-151.0,0.00035,31]
[394142625,1763319052881,-2119.67788,0.00035,31]
[394142626,1763319052891,-151.0,0.00035,31]
[394142627,1763319052901,-482.970846,0.00035,31]
[394142628,1763319052911,-466.69974,0.00035,2]
[394142629,1763319052920,-482.970846,0.00035,31]
[394142630,1763319052930,-151.0,0.00035,31]
[394142631,1763319052940,-482.970846,0.00035,31]
[394142632,1763319052950,-482.970846,0.00035,31]
[394142633,1763319052960,-151.0,0.00035,31]
[394142634,1763319052970,-181.313631,0.00035,31]
[394142635,1763319052980,-151.0,0.00035,31]
[394142636,1763319052990,-151.0,0.00035,31]
[394142637,1763319053131,-151.0,0.00035,31]
[394142638,1763319053153,-151.0,0.00035,31]
[394142639,1763319053163,-228.843487,0.00035,31]
[394142640,1763319053173,-151.0,0.00035,31]
[394142641,1763319053182,-151.0,0.00035,31]
[394142642,1763319053192,-151.0,0.00035,31]
[394142643,1763319053201,-151.0,0.00035,31]
[394142644,1763319053211,-151.0,0.00035,31]
[394142645,1763319053221,-151.0,0.00035,10]
[394142646,1763319053234,-193.006912,0.00035,10]
[394142647,1763319053254,-151.0,0.00035,30]
[394142648,1763319053263,-151.0,0.00035,31]
[394142649,1763319053274,-151.0,0.00035,31]
[394142650,1763319053284,-151.0,0.00035,31]
[394142651,1763319053294,-299.34934,0.00035,31]
[394142652,1763319053303,-151.0,0.00035,31]
[394142653,1763319053313,-255.685735,0.00035,31]
[394142654,1763319053323,-456493.4447883,0.00035,2]
[394142655,1763319053802,-150.0,0.00028219,2]
[394142656,1763319053812,-1644.08677642,0.00031498,2]
[394142657,1763319053824,-478.28499996,0.00031498,2]
[394142658,1763319053836,-21223.38500762,0.00031498,2]
[394142659,1763319053846,-144321.58987178,0.00035,2]
[394142660,1763319053856,-2000.0,0.00035068,120]
[394142661,1763319053866,-1000.0,0.00035068,120]
[394142662,1763319053876,-1000.0,0.00035068,7]
[394142663,1763319053886,-168.1,0.000351,14]
[394142664,1763319053896,-1000.0,0.00035342,7]
[394142665,1763319053906,-600.0,0.00035445,120]
[394142666,1763319053915,-511.54205203,0.00035536,30]
[394142667,1763319053925,-152.0,0.00035536,7]
[394142668,1763319053935,-2000.0,0.00035616,120]
[394142669,1763319053945,-1000.0,0.00035616,120]
[394142670,1763319053955,-150.0,0.00035616,15]
[394142671,1763319053965,-488.0,0.00035616,10]
[394142672,1763319053975,-1000.0,0.00035616,7]
[394142673,1763319053985,-495.27,0.00035616,2]
[394142674,1763319053995,-151.0,0.00035616,31]
[394142675,1763319054005,-167.374206,0.00035616,31]
[394142676,1763319054016,-150.0,0.00035671,15]
[394142677,1763319054026,-1000.0,0.000357,7]
[394142678,1763319054036,-150.0,0.00035726,15]
[394142679,1763319054046,-208.22224658,0.0003578,15]
[394142680,1763319054056,-228.58575698,0.00035814,15]
[394142681,1763319054066,-1406.00025,0.00035888,30]
[394142682,1763319054075,-332.0,0.0003589,30]
[394142683,1763319054085,-1000.0,0.0003589,7]
[394142684,1763319054095,-216.1,0.000359,16]
[394142685,1763319054104,-209.7387154,0.00035993,120]
[394142686,1763319054115,-1003.69,0.00036,2]
[394142687,1763319054124,-172.35675476,0.00036,2]
[394142688,1763319054134,-231683.2367105,0.00036,2]
[394142689,1763319054143,-10721.05388073,0.00036,2]
[394142690,1763319054153,-150.0,0.00036,2]
[394142691,1763319054163,-770.0,0.00036,2]
[394142692,1763319054173,-177.03128444,0.00036,2]
[394142693,1763319054183,-33495.34070498,0.00036,2]
[394142694,1763319054192,-191.0,0.00036,30]
[394142695,1763319054202,-332.0,0.00036,30]
[394142696,1763319054211,-5000.0,0.00036053,2]
[394142697,1763319054221,-5000.0,0.00036075,2]
[394142698,1763319054232,-1406.00025,0.00036088,30]
[394142699,1763319054246,-79879.69048628,0.000361,2]
[394142700,1763319054255,-5000.0,0.00036108,2]
[394142701,1763319054264,-5000.0,0.00036143,2]
[394142702,1763319054274,-750.67,0.00036156,2]
[394142703,1763319054285,-2000.0,0.00036164,120]
[394142704,1763319054295,-1000.0,0.00036164,7]
[394142705,1763319054304,-332.0,0.00036164,30]
[394142706,1763319054314,-4579.68,0.00036165,2]
[394142707,1763319054325,-5000.0,0.00036185,2]
[394142708,1763319054334,-5000.0,0.00036189,2]
[394142709,1763319054343,-2504.71,0.0003619,2]
[394142710,1763319054352,-5000.0,0.00036192,2]
[394142711,1763319054361,-151.0,0.00036192,31]
[394142712,1763319054370,-151.0,0.00036192,31]
[394142713,1763319054379,-151.0,0.00036192,31]
[394142714,1763319054389,-151.0,0.00036192,31]
[394142715,1763319054398,-151.0,0.00036192,31]
[394142716,1763319054407,-151.0,0.00036192,31]
[394142717,1763319054417,-151.0,0.00036192,31]
[394142718,1763319054426,-151.0,0.00036192,31]
[394142719,1763319054435,-259.263968,0.00036192,31]
[394142720,1763319054445,-151.0,0.00036192,31]
[394142721,1763319054454,-151.0,0.00036192,31]
[394142722,1763319054463,-151.0,0.00036192,31]
[394142723,1763319054472,-238.280724,0.00036192,31]
[394142724,1763319054482,-191.873536,0.00036192,31]
[394142725,1763319054491,-238.280724,0.00036192,31]
[394142726,1763319054500,-151.0,0.00036192,31]
[394142727,1763319054510,-238.280724,0.00036192,31]
[394142728,1763319054519,-151.0,0.00036192,31]
[394142729,1763319054527,-238.280724,0.00036192,31]
[394142730,1763319054679,-166.453057,0.00036192,31]
[394142731,1763319054714,-151.0,0.00036192,31]
[394142732,1763319054724,-151.0,0.00036192,15]
[394142733,1763319054734,-151.0,0.00036192,15]
[394142734,1763319054744,-151.0,0.00036192,15]
[394142735,1763319054753,-151.0,0.00036192,31]
[394142736,1763319054763,-151.0,0.00036192,31]
[394142737,1763319054772,-2504.7,0.00036215,2]
[394142738,1763319054782,-984.64322613,0.00036231,2]
[394142739,1763319054791,-1658.97,0.00036243,2]
[394142740,1763319054801,-151.0,0.00036243,31]
[394142741,1763319054810,-151.0,0.00036243,31]
[394142742,1763319054820,-151.0,0.00036243,31]
[394142743,1763319054829,-151.0,0.00036243,31]
[394142744,1763319054839,-151.0,0.00036243,31]
[394142745,1763319054848,-510.053752,0.00036243,28]
[394142746,1763319054858,-510.053752,0.00036243,28]
[394142747,1763319054868,-510.053752,0.00036243,28]
[394142748,1763319054878,-510.053746,0.00036243,28]
[394142749,1763319054887,-151.0,0.00036243,31]
[394142750,1763319054897,-151.0,0.00036243,31]
[394142751,1763319054906,-151.0,0.00036243,31]
[394142752,1763319054915,-5000.0,0.00036284,2]
[394142753,1763319054924,-5000.0,0.00036288,2]
[394142754,1763319054933,-1406.00025,0.00036288,30]
[394142755,1763319054943,-299.701289,0.00036288,31]
[394142756,1763319054953,-299.701289,0.00036288,31]
[394142757,1763319054963,-299.701289,0.00036288,31]
[394142758,1763319054973,-299.70129091,0.00036288,31]
[394142759,1763319054983,-199.757326,0.00036288,31]
[394142760,1763319054992,-199.757326,0.00036288,31]
[394142761,1763319055002,-199.757326,0.00036288,31]
[394142762,1763319055011,-199.757334,0.00036288,31]
[394142763,1763319055021,-151.0,0.00036288,31]
[394142764,1763319055031,-151.0,0.00036288,31]
[394142765,1763319055041,-151.0,0.00036288,31]
[394142766,1763319055051,-151.0,0.00036288,31]
[394142767,1763319055060,-151.0,0.00036288,31]
[394142768,1763319055071,-151.0,0.00036288,31]
[394142769,1763319055080,-151.0,0.00036288,31]
[394142770,1763319055090,-151.0,0.00036288,31]
[394142771,1763319055099,-151.0,0.00036288,31]
[394142772,1763319055108,-508.655404,0.00036288,31]
[394142773,1763319055119,-198.451936,0.00036288,31]
[394142774,1763319055128,-508.655404,0.00036288,31]
[394142775,1763319055138,-508.655404,0.00036288,31]
[394142776,1763319055148,-508.655403,0.00036288,31]
[394142777,1763319055157,-151.0,0.00036288,31]
[394142778,1763319055167,-151.0,0.00036288,31]
[394142779,1763319055176,-174.433953,0.00036288,31]
[394142780,1763319055185,-174.433953,0.00036288,31]
[394142781,1763319055195,-174.433953,0.00036288,31]
[394142782,1763319055205,-278.86233,0.00036288,31]
[394142783,1763319055215,-174.433949,0.00036288,31]
[394142784,1763319055224,-151.0,0.00036288,31]
[394142785,1763319055238,-286.065091,0.00036288,31]
[394142786,1763319055248,-188.279895,0.00036288,31]
[394142787,1763319055257,-188.279895,0.00036288,31]
[394142788,1763319055267,-151.0,0.00036288,31]
[394142789,1763319055277,-188.279895,0.00036288,31]
[394142790,1763319055286,-151.0,0.00036288,31]
[394142791,1763319055295,-188.279899,0.00036288,31]
[394142792,1763319055304,-151.0,0.00036288,31]
[394142793,1763319055315,-151.0,0.00036288,31]
[394142794,1763319055324,-151.0,0.00036288,31]
[394142795,1763319055333,-151.0,0.00036288,31]
[394142796,1763319055343,-151.0,0.00036288,31]
[394142797,1763319055352,-151.0,0.00036288,31]
[394142798,1763319055362,-151.0,0.00036288,31]
[394142799,1763319055372,-151.0,0.00036288,31]
[394142800,1763319055382,-151.0,0.00036288,31]
[394142801,1763319055391,-235.011081,0.00036288,31]
[394142802,1763319055400,-235.011081,0.00036288,31]
[394142803,1763319055410,-151.0,0.00036288,31]
[394142804,1763319055419,-235.011081,0.00036288,31]
[394142805,1763319055428,-235.011077,0.00036288,31]
[394142806,1763319055437,-151.0,0.00036288,31]
[394142807,1763319055447,-151.0,0.00036288,31]
[394142808,1763319055456,-216.330313,0.00036288,30]
[394142809,1763319055466,-216.330313,0.00036288,30]
[394142810,1763319055476,-216.330313,0.00036288,30]
[394142811,1763319055489,-177.820604,0.00036288,31]
[394142812,1763319055499,-216.330317,0.00036288,30]
[394142813,1763319055509,-177.820604,0.00036288,31]
[394142814,1763319055519,-177.820604,0.00036288,31]
[394142815,1763319055528,-177.820595,0.00036288,31]
[394142816,1763319055538,-151.0,0.00036288,31]
[394142817,1763319055548,-151.0,0.00036288,31]
[394142818,1763319055557,-767.580442,0.00036288,31]
[394142819,1763319055567,-767.580442,0.00036288,31]
[394142820,1763319055577,-767.580442,0.00036288,31]
[394142821,1763319055587,-767.580442,0.00036288,31]
[394142822,1763319055596,-2119.67788,0.00036288,31]
[394142823,1763319055605,-2119.67788,0.00036288,31]
[394142824,1763319055615,-2119.67788,0.00036288,31]
[394142825,1763319055624,-151.0,0.00036288,31]
[394142826,1763319055633,-2119.67788,0.00036288,31]
[394142827,1763319055643,-151.0,0.00036288,31]
[394142828,1763319055652,-482.970846,0.00036288,31]
[394142829,1763319055661,-482.970846,0.00036288,31]
[394142830,1763319055671,-151.0,0.00036288,31]
[394142831,1763319055680,-482.970846,0.00036288,31]
[394142832,1763319055689,-482.970846,0.00036288,31]
[394142833,1763319055699,-151.0,0.00036288,31]
[394142834,1763319055709,-151.0,0.00036288,31]
[394142835,1763319055718,-151.0,0.00036288,31]
[394142836,1763319055727,-151.0,0.00036288,31]
[394142837,1763319055739,-151.0,0.00036288,31]
[394142838,1763319055748,-151.0,0.00036288,31]
[394142839,1763319055757,-151.0,0.00036288,31]
[394142840,1763319055767,-25000.0,0.0003629,2]
[394142841,1763319055776,-151.0,0.0003629,31]
[394142842,1763319055786,-151.0,0.0003629,31]
[394142843,1763319055795,-151.0,0.0003629,10]
[394142844,1763319055805,-151.0,0.0003629,31]
[394142845,1763319055814,-151.0,0.0003629,31]
[394142846,1763319055824,-151.0,0.0003629,31]
[394142847,1763319055835,-151.0,0.0003629,31]
[394142848,1763319055844,-25000.0,0.00036291,2]
[394142849,1763319055854,-5000.0,0.00036305,2]
[394142850,1763319055863,-2534.77,0.00036305,2]
[394142851,1763319055873,-25000.0,0.00036318,2]
[394142852,1763319055882,-4410.27,0.00036331,2]
[394142853,1763319055892,-718.93025998,0.00036332,2]
[394142854,1763319055902,-5000.0,0.00036333,2]
[394142855,1763319055911,-5000.0,0.00036337,2]
[394142856,1763319055921,-5000.0,0.00036364,2]
[394142857,1763319055931,-173.29294005,0.00036375,2]
[394142858,1763319055940,-709.78610137,0.00036379,2]
[394142859,1763319055950,-5000.0,0.00036384,2]
[394142860,1763319055959,-5000.0,0.00036406,2]
[394142861,1763319055969,-5000.0,0.0003641,2]
[394142862,1763319055979,-14996.93274094,0.00036419,2]
[394142863,1763319055991,-5000.0,0.00036437,2]
[394142864,1763319056000,-488.0,0.00036438,11]
[394142865,1763319056011,-1000.0,0.00036438,7]
[394142866,1763319056020,-332.0,0.00036438,30]
[394142867,1763319056030,-300.0,0.00036456,10]
[394142868,1763319056040,-12681.53,0.00036457,2]
[394142869,1763319056050,-5000.0,0.00036475,2]
[394142870,1763319056059,-5000.0,0.00036478,2]
[394142871,1763319056068,-5000.0,0.00036479,2]
[394142872,1763319056078,-1406.00025,0.00036488,30]
[394142873,1763319056087,-5000.0,0.0003649,2]
[394142874,1763319056097,-25000.0,0.00036493,2]
[394142875,1763319056107,-1100.0,0.00036536,30]
[394142876,1763319056116,-5000.0,0.00036552,2]
[394142877,1763319056126,-600.0,0.00036553,30]
[394142878,1763319056136,-900.0,0.00036565,30]
[394142879,1763319056145,-900.0,0.0003658,30]
[394142880,1763319056155,-189.05895988,0.00036581,7]
[394142881,1763319056164,-5000.0,0.00036618,2]
[394142882,1763319056173,-150.0,0.0003663,30]
[394142883,1763319056183,-500.0,0.00036636,30]
[394142884,1763319056193,-600.0,0.00036638,30]
[394142885,1763319056203,-500.0,0.00036643,30]
[394142886,1763319056212,-925.89,0.00036652,2]
[394142887,1763319056221,-5000.0,0.0003666,2]
[394142888,1763319056231,-5000.0,0.00036668,2]
[394142889,1763319056248,-25000.0,0.00036681,2]
[394142890,1763319056257,-152.0,0.00036681,8]
[394142891,1763319056267,-744.46144285,0.00036682,2]
[394142892,1763319056277,-900.0,0.00036682,30]
[394142893,1763319056288,-1406.00025,0.00036688,30]
[394142894,1763319056297,-5000.0,0.00036694,2]
[394142895,1763319056307,-2000.0,0.00036712,120]
[394142896,1763319056316,-332.0,0.00036712,30]
[394142897,1763319056326,-1000.0,0.00036712,7]
[394142898,1763319056336,-1003.69,0.0003672,2]
[394142899,1763319056345,-5000.0,0.00036736,2]
[394142900,1763319056355,-593.14,0.00036748,2]
[394142901,1763319056365,-4525.96,0.00036755,2]
[394142902,1763319056374,-1100.0,0.00036759,30]
[394142903,1763319056383,-5000.0,0.00036765,2]
[394142904,1763319056393,-5000.0,0.00036793,2]
[394142905,1763319056402,-5000.0,0.00036799,2]
[394142906,1763319056526,-25000.0,0.00036806,2]
[394142907,1763319056536,-500.0,0.00036859,30]
[394142908,1763319056546,-5000.0,0.00036863,2]
[394142909,1763319056555,-1406.00025,0.00036888,30]
[394142910,1763319056564,-13944.27592237,0.0003691,2]
[394142911,1763319056574,-5000.0,0.00036911,2]
[394142912,1763319056583,-500.0,0.00036926,30]
[394142913,1763319056593,-1100.0,0.00036962,30]
[394142914,1763319056602,-25000.0,0.00036976,2]
[394142915,1763319056611,-500.0,0.00036986,15]
[394142916,1763319056621,-500.0,0.00036986,15]
[394142917,1763319056630,-500.0,0.00036986,15]
[394142918,1763319056639,-500.0,0.00036986,15]
[394142919,1763319056649,-500.0,0.00036986,15]
[394142920,1763319056658,-500.0,0.00036986,15]
[394142921,1763319056667,-500.0,0.00036986,15]
[394142922,1763319056677,-500.0,0.00036986,15]
[394142923,1763319056686,-632.4571034,0.00036986,15]
[394142924,1763319056696,-500.0,0.00036986,15]
[394142925,1763319056705,-500.0,0.00036986,15]
[394142926,1763319056715,-500.0,0.00036986,15]
[394142927,1763319056724,-1000.0,0.00036986,7]
[394142928,1763319056735,-8802.57964178,0.00037,2]
[394142929,1763319056744,-16455.45192912,0.00037,5]
[394142930,1763319056753,-6226.0,0.00037,5]
[394142931,1763319056762,-150.0,0.00037,2]
[394142932,1763319056771,-770.0,0.00037,30]
[394142933,1763319056780,-2103.72114587,0.00037,5]
[394142934,1763319056790,-177.0,0.00037,30]
[394142935,1763319056799,-466.69974,0.00037,2]
[394142936,1763319056809,-1100.0,0.0003701,30]
[394142937,1763319056822,-1100.0,0.00037021,30]
[394142938,1763319056831,-500.0,0.0003703,30]
[394142939,1763319056841,-1100.0,0.00037066,30]
[394142940,1763319056850,-1400.0,0.00037084,30]
[394142941,1763319056859,-1406.00025,0.00037088,30]
[394142942,1763319056868,-1100.0,0.00037113,30]
[394142943,1763319056878,-608.0,0.00037136,2]
[394142944,1763319056887,-1318.0,0.00037136,2]
[394142945,1763319056897,-575.0,0.00037136,2]
[394142946,1763319056906,-456.572,0.00037136,2]
[394142947,1763319056916,-821.0,0.00037136,2]
[394142948,1763319056926,-793.0,0.00037136,2]
[394142949,1763319056935,-1275.0,0.00037136,2]
[394142950,1763319056944,-6488.0,0.00037136,2]
[394142951,1763319056954,-300.0,0.00037151,24]
[394142952,1763319056963,-11206.2310643,0.0003716,2]
[394142953,1763319056973,-2596.0,0.0003718,30]
[394142954,1763319056983,-900.0,0.00037195,30]
[394142955,1763319056992,-600.0,0.00037205,30]
[394142956,1763319057002,-2000.0,0.0003726,120]
[394142957,1763319057011,-488.0,0.0003726,12]
[394142958,1763319057022,-1000.0,0.0003726,7]
[394142959,1763319057031,-1400.0,0.00037264,30]
[394142960,1763319057040,-1406.00025,0.00037288,30]
[394142961,1763319057050,-500.0,0.00037298,30]
[394142962,1763319057059,-900.0,0.000373,30]
[394142963,1763319057068,-168.1,0.000373,14]
[394142964,1763319057078,-2086.97,0.000373,30]
[394142965,1763319057087,-1993.64613796,0.00037343,30]
[394142966,1763319057096,-1066.91097843,0.00037343,30]
[394142967,1763319057106,-1000.0,0.00037343,30]
[394142968,1763319057115,-1000.0,0.00037343,30]
[394142969,1763319057125,-1003.34767189,0.00037343,30]
[394142970,1763319057134,-1007.44003484,0.00037343,30]
[394142971,1763319057144,-1100.0,0.00037358,30]
[394142972,1763319057153,-500.0,0.00037364,30]
[394142973,1763319057162,-177.32,0.0003737,2]
[394142974,1763319057172,-207.93888385,0.0003739,14]
[394142975,1763319057181,-332.0,0.00037397,30]
[394142976,1763319057191,-500.0,0.00037406,30]
[394142977,1763319057200,-1003.69,0.0003744,2]
[394142978,1763319057211,-1100.0,0.00037469,30]
[394142979,1763319057220,-1400.0,0.00037485,30]
[394142980,1763319057230,-1406.00025,0.00037488,30]
[394142981,1763319057243,-600.0,0.0003749,30]
[394142982,1763319057253,-1000.0,0.00037534,7]
[394142983,1763319057263,-500.0,0.0003754,30]
[394142984,1763319057272,-500.0,0.00037541,30]
[394142985,1763319057282,-1100.0,0.00037573,30]
[394142986,1763319057292,-4276.98215413,0.0003759,2]
[394142987,1763319057313,-1100.0,0.00037627,30]
[394142988,1763319057331,-1100.0,0.00037643,30]
[394142989,1763319057351,-900.0,0.00037687,30]
[394142990,1763319057370,-767.580442,0.00037687,31]
[394142991,1763319057385,-767.580442,0.00037687,31]
[394142992,1763319057404,-767.580442,0.00037687,31]
[394142993,1763319057424,-767.580442,0.00037687,31]
[394142994,1763319057444,-2119.67788,0.00037687,31]
[394142995,1763319057463,-2119.67788,0.00037687,31]
[394142996,1763319057480,-2119.67788,0.00037687,31]
[394142997,1763319057500,-151.0,0.00037687,31]
[394142998,1763319057517,-2119.67788,0.00037687,31]
[394142999,1763319057531,-151.0,0.00037687,31]
[394143000,1763319057551,-482.970846,0.00037687,31]
[394143001,1763319057564,-482.970846,0.00037687,31]
[394143002,1763319057583,-151.0,0.00037687,31]
[394143003,1763319057596,-482.970846,0.00037687,31]
[394143004,1763319057612,-482.970846,0.00037687,31]
[394143005,1763319057627,-151.0,0.00037687,31]
[394143006,1763319057641,-151.0,0.00037687,31]
[394143007,1763319057658,-151.0,0.00037687,31]
[394143008,1763319057673,-151.0,0.00037687,31]
[394143009,1763319057688,-151.0,0.00037687,31]
[394143010,1763319057702,-151.0,0.00037687,31]
[394143011,1763319057718,-1406.00025,0.00037688,30]
[394143012,1763319057733,-500.0,0.00037698,30]
[394143013,1763319057748,-519.63886444,0.00037729,30]
[394143014,1763319057763,-151.0,0.00037741,31]
[394143015,1763319057778,-170.5392958,0.0003777,30]
[394143016,1763319057794,-500.0,0.00037788,30]
[394143017,1763319057809,-2000.0,0.000378,2]
[394143018,1763319057824,-776.33,0.000378,30]
[394143019,1763319057839,-2000.0,0.00037808,120]
[394143020,1763319057855,-1000.0,0.00037808,7]
[394143021,1763319057870,-209.7387154,0.0003782,120]
[394143022,1763319057886,-152.0,0.00037827,9]
[394143023,1763319057901,-1100.0,0.00037886,30]
[394143024,1763319057916,-1406.00025,0.00037888,30]
[394143025,1763319057930,-151.0,0.00037888,31]
[394143026,1763319057945,-151.0,0.00037888,31]
[394143027,1763319057961,-151.0,0.00037888,31]
[394143028,1763319057976,-151.0,0.00037888,31]
[394143029,1763319057994,-151.0,0.00037888,31]
[394143030,1763319058009,-151.0,0.00037888,31]
[394143031,1763319058025,-151.0,0.00037888,31]
[394143032,1763319058040,-238.280724,0.00037888,31]
[394143033,1763319058056,-238.280724,0.00037888,31]
[394143034,1763319058071,-151.0,0.00037888,31]
[394143035,1763319058086,-238.280724,0.00037888,31]
[394143036,1763319058101,-151.0,0.00037888,31]
[394143037,1763319058116,-238.280724,0.00037888,31]
[394143038,1763319058131,-151.0,0.00037888,15]
[394143039,1763319058146,-151.0,0.00037888,15]
[394143040,1763319058161,-151.0,0.00037888,15]
[394143041,1763319058176,-151.0,0.00037888,31]
[394143042,1763319058191,-151.0,0.000379,31]
[394143043,1763319058206,-151.0,0.000379,31]
[394143044,1763319058222,-150.0,0.00037918,2]
[394143045,1763319058237,-150.0,0.00037918,2]
[394143046,1763319058253,-1100.0,0.00037922,30]
[394143047,1763319058268,-1400.0,0.00037937,30]
[394143048,1763319058286,-500.0,0.00037942,30]
[394143049,1763319058298,-88282.70501982,0.0003797,2]
[394143050,1763319058308,-151.0,0.0003797,31]
[394143051,1763319058321,-206.105128,0.0003797,31]
[394143052,1763319058331,-151.0,0.0003797,10]
[394143053,1763319058341,-151.0,0.0003797,31]
[394143054,1763319058351,-151.0,0.0003797,31]
[394143055,1763319058361,-151.0,0.0003797,31]
[394143056,1763319058371,-151.0,0.0003797,31]
[394143057,1763319058381,-2000.0,0.00038,2]
[394143058,1763319058391,-203140.58519018,0.00038,2]
[394143059,1763319058401,-1903.80477162,0.00038,2]
[394143060,1763319058417,-8820.57528317,0.00038,2]
[394143061,1763319058429,-1839.08,0.00038,2]
[394143062,1763319058461,-47672.0,0.00038,2]
[394143063,1763319058835,-23345.756784,0.00033138,2]
[394143064,1763319058845,-700.23,0.00033863,2]
[394143065,1763319058855,-97372.2283912,0.00038,2]
[394143066,1763319058864,-150.0,0.00038,2]
[394143067,1763319058875,-165.0,0.00038,2]
[394143068,1763319058885,-770.0,0.00038,30]
[394143069,1763319058894,-34508.77662,0.00038,7]
[394143070,1763319058904,-177.0,0.00038,30]
[394143071,1763319058914,-160.47,0.00038,14]
[394143072,1763319058924,-1268.14,0.00038,2]
[394143073,1763319058934,-767.580442,0.00038,31]
[394143074,1763319058945,-767.580442,0.00038,31]
[394143075,1763319058955,-767.580442,0.00038,31]
[394143076,1763319058966,-767.580437,0.00038,31]
[394143077,1763319058977,-2119.67788,0.00038,31]
[394143078,1763319058987,-2119.67788,0.00038,31]
[394143079,1763319058999,-2119.67788,0.00038,31]
[394143080,1763319059009,-151.0,0.00038,31]
[394143081,1763319059020,-2119.67788,0.00038,31]
[394143082,1763319059031,-166.110746,0.00038,31]
[394143083,1763319059041,-482.970846,0.00038,31]
[394143084,1763319059051,-328.53573905,0.00038,31]
[394143085,1763319059063,-154.43510695,0.00038,31]
[394143086,1763319059073,-482.970846,0.00038,31]
[394143087,1763319059083,-482.970854,0.00038,31]
[394143088,1763319059092,-151.0,0.00038,31]
[394143089,1763319059101,-151.0,0.00038,31]
[394143090,1763319059112,-151.0,0.00038,31]
[394143091,1763319059121,-151.0,0.00038,31]
[394143092,1763319059131,-265.593615,0.00038,31]
[394143093,1763319059141,-877.34306805,0.00038055,2]
[394143094,1763319059151,-14996.93274094,0.0003806,2]
[394143095,1763319059160,-600.0,0.00038073,30]
[394143096,1763319059170,-500.0,0.00038082,30]
[394143097,1763319059180,-488.0,0.00038082,13]
[394143098,1763319059189,-1000.0,0.00038082,7]
[394143099,1763319059199,-1406.00025,0.00038088,30]
[394143100,1763319059208,-900.0,0.00038143,30]
[394143101,1763319059218,-1003.69,0.0003816,2]
[394143102,1763319059227,-1400.0,0.00038173,30]
[394143103,1763319059238,-150.0,0.00038192,2]
[394143104,1763319059250,-150.0,0.00038192,2]
[394143105,1763319059260,-150.0,0.00038192,2]
[394143106,1763319059270,-150.0,0.00038192,2]
[394143107,1763319059281,-150.0,0.00038192,2]